[Event "Live Chess"]
[Site "Chess.com"]
[Date "2010.12.09"]
[Round "-"]
[White "mr_Ralf"]
[Black "hipposcottimus"]
[Result "0-1"]
[CurrentPosition "2r5/5kp1/2p5/1p3PP1/5B1P/n4K2/8/2R5 w - -"]
[Timezone "UTC"]
[ECO "C20"]
[ECOUrl "https://www.chess.com/openings/Kings-Pawn-Opening-The-Whale-Variation"]
[UTCDate "2010.12.09"]
[UTCTime "22:12:06"]
[WhiteElo "1471"]
[BlackElo "1660"]
[TimeControl "60"]
[Termination "hipposcottimus won on time"]
[StartTime "22:12:06"]
[EndDate "2010.12.09"]
[EndTime "22:14:07"]
[Link "https://www.chess.com/game/live/75711291"]

1. e4 {[%clk 0:01:00]} 1... e5 {[%clk 0:01:00]} 2. c4 {[%clk 0:00:58.1]} 2... Bc5 {[%clk 0:00:56.6]} 3. d3 {[%clk 0:00:57.7]} 3... d6 {[%clk 0:00:56.2]} 4. h3 {[%clk 0:00:56.9]} 4... c6 {[%clk 0:00:55.8]} 5. a3 {[%clk 0:00:55.7]} 5... a5 {[%clk 0:00:52.5]} 6. b4 {[%clk 0:00:55.3]} 6... a4 {[%clk 0:00:51.6]} 7. bxc5 {[%clk 0:00:53.9]} 7... dxc5 {[%clk 0:00:50.1]} 8. Nf3 {[%clk 0:00:53]} 8... f5 {[%clk 0:00:47]} 9. exf5 {[%clk 0:00:50.7]} 9... Bxf5 {[%clk 0:00:45.4]} 10. Nc3 {[%clk 0:00:49.7]} 10... Nf6 {[%clk 0:00:44.8]} 11. Nxa4 {[%clk 0:00:48.6]} 11... O-O {[%clk 0:00:42.1]} 12. Nxc5 {[%clk 0:00:47.8]} 12... e4 {[%clk 0:00:41.8]} 13. Nxe4 {[%clk 0:00:45.6]} 13... Bxe4 {[%clk 0:00:41.5]} 14. dxe4 {[%clk 0:00:44.8]} 14... Nxe4 {[%clk 0:00:41.2]} 15. Qxd8 {[%clk 0:00:39.3]} 15... Rxd8 {[%clk 0:00:40.9]} 16. Be2 {[%clk 0:00:36.4]} 16... Re8 {[%clk 0:00:40.6]} 17. Ng5 {[%clk 0:00:33.8]} 17... Nc3 {[%clk 0:00:40.3]} 18. Kf1 {[%clk 0:00:30.6]} 18... Nxe2 {[%clk 0:00:39.2]} 19. f3 {[%clk 0:00:28]} 19... Nd7 {[%clk 0:00:36.4]} 20. Kf2 {[%clk 0:00:25.4]} 20... h6 {[%clk 0:00:34.8]} 21. Re1 {[%clk 0:00:24.7]} 21... hxg5 {[%clk 0:00:33.4]} 22. Rxe2 {[%clk 0:00:24.3]} 22... Rxe2+ {[%clk 0:00:33.1]} 23. Kxe2 {[%clk 0:00:24.3]} 23... Ne5 {[%clk 0:00:32.8]} 24. Bxg5 {[%clk 0:00:22.6]} 24... Re8 {[%clk 0:00:31.5]} 25. Kf2 {[%clk 0:00:20.8]} 25... Nxc4 {[%clk 0:00:29.1]} 26. Rb1 {[%clk 0:00:17.7]} 26... b5 {[%clk 0:00:28.6]} 27. Rc1 {[%clk 0:00:14.8]} 27... Kh7 {[%clk 0:00:26.7]} 28. g4 {[%clk 0:00:10.7]} 28... Kg6 {[%clk 0:00:25.9]} 29. Bf4 {[%clk 0:00:07.5]} 29... Rf8 {[%clk 0:00:24.3]} 30. Bh2 {[%clk 0:00:06.7]} 30... Rf7 {[%clk 0:00:21.1]} 31. f4 {[%clk 0:00:06]} 31... Rc7 {[%clk 0:00:19.7]} 32. f5+ {[%clk 0:00:05.5]} 32... Kg5 {[%clk 0:00:19.1]} 33. Kf3 {[%clk 0:00:03.8]} 33... Rc8 {[%clk 0:00:17.6]} 34. Bf4+ {[%clk 0:00:03.2]} 34... Kf6 {[%clk 0:00:16.4]} 35. h4 {[%clk 0:00:02.4]} 35... Kf7 {[%clk 0:00:16.2]} 36. g5 {[%clk 0:00:01.6]} 36... Nxa3 {[%clk 0:00:15.7]} 0-1

[Event "Live Chess"]
[Site "Chess.com"]
[Date "2010.12.09"]
[Round "-"]
[White "hipposcottimus"]
[Black "mr_Ralf"]
[Result "1-0"]
[CurrentPosition "4R1k1/p4ppp/8/8/8/6Q1/Pq1r1PPP/5RK1 b - -"]
[Timezone "UTC"]
[ECO "C21"]
[ECOUrl "https://www.chess.com/openings/Center-Game-Accepted-Ross-Gambit"]
[UTCDate "2010.12.09"]
[UTCTime "22:10:34"]
[WhiteElo "1660"]
[BlackElo "1471"]
[TimeControl "60"]
[Termination "hipposcottimus won by checkmate"]
[StartTime "22:10:34"]
[EndDate "2010.12.09"]
[EndTime "22:11:45"]
[Link "https://www.chess.com/game/live/75710890"]

1. e4 {[%clk 0:01:00]} 1... e5 {[%clk 0:01:00]} 2. d4 {[%clk 0:00:59.7]} 2... exd4 {[%clk 0:00:58.6]} 3. Bd3 {[%clk 0:00:59.5]} 3... c5 {[%clk 0:00:57.7]} 4. c3 {[%clk 0:00:58.4]} 4... Nc6 {[%clk 0:00:57]} 5. cxd4 {[%clk 0:00:57.6]} 5... cxd4 {[%clk 0:00:57]} 6. Nd2 {[%clk 0:00:55.4]} 6... d5 {[%clk 0:00:56.4]} 7. Nb3 {[%clk 0:00:55.2]} 7... dxe4 {[%clk 0:00:54.9]} 8. Bxe4 {[%clk 0:00:54]} 8... Nf6 {[%clk 0:00:54.3]} 9. Bd3 {[%clk 0:00:53.7]} 9... Bb4+ {[%clk 0:00:50.7]} 10. Bd2 {[%clk 0:00:52.1]} 10... Bxd2+ {[%clk 0:00:49.4]} 11. Qxd2 {[%clk 0:00:51.9]} 11... Qe7+ {[%clk 0:00:46.1]} 12. Be2 {[%clk 0:00:50.5]} 12... O-O {[%clk 0:00:45.3]} 13. Nf3 {[%clk 0:00:49.8]} 13... Re8 {[%clk 0:00:44.7]} 14. Nbxd4 {[%clk 0:00:45.7]} 14... Bg4 {[%clk 0:00:40.6]} 15. Nxc6 {[%clk 0:00:41.7]} 15... bxc6 {[%clk 0:00:39.8]} 16. O-O {[%clk 0:00:40]} 16... Bxf3 {[%clk 0:00:38.5]} 17. Bxf3 {[%clk 0:00:39.3]} 17... Nd5 {[%clk 0:00:35.4]} 18. Bxd5 {[%clk 0:00:37.1]} 18... cxd5 {[%clk 0:00:35.4]} 19. Qxd5 {[%clk 0:00:36.8]} 19... Rad8 {[%clk 0:00:35.4]} 20. Qf3 {[%clk 0:00:36.5]} 20... Qb4 {[%clk 0:00:31.6]} 21. Qg3 {[%clk 0:00:35.9]} 21... Qxb2 {[%clk 0:00:29.8]} 22. Rae1 {[%clk 0:00:34.6]} 22... Rd2 {[%clk 0:00:27.7]} 23. Rxe8# {[%clk 0:00:33.2]} 1-0

[Event "Live Chess"]
[Site "Chess.com"]
[Date "2010.12.09"]
[Round "-"]
[White "mr_Ralf"]
[Black "hipposcottimus"]
[Result "0-1"]
[CurrentPosition "5k2/p5pp/8/1P1b4/PK6/6P1/7b/8 w - -"]
[Timezone "UTC"]
[ECO "A00"]
[ECOUrl "https://www.chess.com/openings/Kings-Fianchetto-Opening-Regan-Variation"]
[UTCDate "2010.12.09"]
[UTCTime "22:08:25"]
[WhiteElo "1471"]
[BlackElo "1660"]
[TimeControl "60"]
[Termination "hipposcottimus won on time"]
[StartTime "22:08:25"]
[EndDate "2010.12.09"]
[EndTime "22:10:17"]
[Link "https://www.chess.com/game/live/75710263"]

1. g3 {[%clk 0:01:00]} 1... e5 {[%clk 0:01:00]} 2. Bg2 {[%clk 0:00:59.3]} 2... d5 {[%clk 0:00:59.3]} 3. d4 {[%clk 0:00:55.4]} 3... e4 {[%clk 0:00:59]} 4. f3 {[%clk 0:00:54.3]} 4... f5 {[%clk 0:00:56.8]} 5. fxe4 {[%clk 0:00:51.6]} 5... fxe4 {[%clk 0:00:56.5]} 6. Nc3 {[%clk 0:00:50.1]} 6... Nf6 {[%clk 0:00:56.3]} 7. Bg5 {[%clk 0:00:46.1]} 7... Nc6 {[%clk 0:00:56]} 8. Bxf6 {[%clk 0:00:44.8]} 8... Qxf6 {[%clk 0:00:55.7]} 9. Nxd5 {[%clk 0:00:43.6]} 9... Qe6 {[%clk 0:00:55.1]} 10. Nxc7+ {[%clk 0:00:42]} 10... Ke7 {[%clk 0:00:51.4]} 11. Nxe6 {[%clk 0:00:42]} 11... Bxe6 {[%clk 0:00:50.6]} 12. e3 {[%clk 0:00:41.3]} 12... Kf7 {[%clk 0:00:50.2]} 13. Bxe4 {[%clk 0:00:40]} 13... Be7 {[%clk 0:00:49.9]} 14. Bxc6 {[%clk 0:00:39]} 14... Bf6 {[%clk 0:00:49.6]} 15. Qf3 {[%clk 0:00:37]} 15... bxc6 {[%clk 0:00:48.4]} 16. O-O-O {[%clk 0:00:34]} 16... Rhc8 {[%clk 0:00:47.9]} 17. c4 {[%clk 0:00:33.3]} 17... Kg8 {[%clk 0:00:47.5]} 18. Kb1 {[%clk 0:00:31.1]} 18... Bxc4 {[%clk 0:00:47.1]} 19. Rc1 {[%clk 0:00:28.8]} 19... Bd3+ {[%clk 0:00:46.2]} 20. Ka1 {[%clk 0:00:27]} 20... Bg6 {[%clk 0:00:45.9]} 21. Rxc6 {[%clk 0:00:24.2]} 21... Rcb8 {[%clk 0:00:44.6]} 22. Ne2 {[%clk 0:00:19.4]} 22... Be8 {[%clk 0:00:43.6]} 23. Rc7 {[%clk 0:00:17]} 23... Rc8 {[%clk 0:00:42.8]} 24. Rxc8 {[%clk 0:00:15.6]} 24... Rxc8 {[%clk 0:00:42.5]} 25. Qd5+ {[%clk 0:00:14.3]} 25... Kh8 {[%clk 0:00:40.5]} 26. Rc1 {[%clk 0:00:11.4]} 26... Rd8 {[%clk 0:00:37.6]} 27. Rc7 {[%clk 0:00:09]} 27... Rxd5 {[%clk 0:00:36.1]} 28. Rc8 {[%clk 0:00:07.2]} 28... Rd8 {[%clk 0:00:34.1]} 29. Rxd8 {[%clk 0:00:05.1]} 29... Bxd8 {[%clk 0:00:33.8]} 30. Nc3 {[%clk 0:00:04.8]} 30... Kg8 {[%clk 0:00:33.5]} 31. Nd5 {[%clk 0:00:04.3]} 31... Kf8 {[%clk 0:00:33.3]} 32. b3 {[%clk 0:00:03.7]} 32... Bf7 {[%clk 0:00:32.5]} 33. b4 {[%clk 0:00:03.2]} 33... Bxd5 {[%clk 0:00:31.7]} 34. a3 {[%clk 0:00:02.7]} 34... Bf6 {[%clk 0:00:30.4]} 35. Kb2 {[%clk 0:00:02.3]} 35... Bg5 {[%clk 0:00:30]} 36. a4 {[%clk 0:00:01.8]} 36... Bxe3 {[%clk 0:00:29.7]} 37. Ka3 {[%clk 0:00:00.6]} 37... Bxd4 {[%clk 0:00:29.4]} 38. b5 {[%clk 0:00:00.6]} 38... Bg1 {[%clk 0:00:28.9]} 39. Kb4 {[%clk 0:00:00.6]} 39... Bxh2 {[%clk 0:00:27.2]} 0-1

[Event "Live Chess"]
[Site "Chess.com"]
[Date "2010.12.09"]
[Round "-"]
[White "hipposcottimus"]
[Black "mr_Ralf"]
[Result "0-1"]
[CurrentPosition "r3k3/pp4R1/3p2b1/2q5/6r1/2B5/PP4PP/5R1K w - -"]
[Timezone "UTC"]
[ECO "C41"]
[ECOUrl "https://www.chess.com/openings/Philidor-Defense-3.Bc4"]
[UTCDate "2010.12.09"]
[UTCTime "22:05:59"]
[WhiteElo "1660"]
[BlackElo "1471"]
[TimeControl "60"]
[Termination "mr_Ralf won on time"]
[StartTime "22:05:59"]
[EndDate "2010.12.09"]
[EndTime "22:08:01"]
[Link "https://www.chess.com/game/live/75709661"]

1. e4 {[%clk 0:01:00]} 1... e5 {[%clk 0:01:00]} 2. Nf3 {[%clk 0:00:59.7]} 2... d6 {[%clk 0:00:59.4]} 3. Bc4 {[%clk 0:00:59.5]} 3... c5 {[%clk 0:00:59]} 4. d4 {[%clk 0:00:59.2]} 4... cxd4 {[%clk 0:00:57.3]} 5. c3 {[%clk 0:00:58.9]} 5... dxc3 {[%clk 0:00:56.1]} 6. Nxc3 {[%clk 0:00:58.6]} 6... h6 {[%clk 0:00:55.8]} 7. Nd5 {[%clk 0:00:56.8]} 7... Nf6 {[%clk 0:00:54.6]} 8. Qa4+ {[%clk 0:00:55.9]} 8... Nc6 {[%clk 0:00:52.1]} 9. Bb5 {[%clk 0:00:54.2]} 9... Bd7 {[%clk 0:00:50.6]} 10. Nxf6+ {[%clk 0:00:52.8]} 10... Qxf6 {[%clk 0:00:48.7]} 11. Bxc6 {[%clk 0:00:52.5]} 11... Bxc6 {[%clk 0:00:47.4]} 12. Qb4 {[%clk 0:00:52.2]} 12... Be7 {[%clk 0:00:44.9]} 13. O-O {[%clk 0:00:43.3]} 13... O-O {[%clk 0:00:43.4]} 14. Ne1 {[%clk 0:00:41.4]} 14... Rfc8 {[%clk 0:00:42.4]} 15. f4 {[%clk 0:00:40.5]} 15... Bxe4 {[%clk 0:00:39.9]} 16. fxe5 {[%clk 0:00:37.7]} 16... Qxe5 {[%clk 0:00:38.5]} 17. Bf4 {[%clk 0:00:35.2]} 17... Qd5 {[%clk 0:00:35.2]} 18. Rd1 {[%clk 0:00:30.3]} 18... Qc6 {[%clk 0:00:33.4]} 19. Qd2 {[%clk 0:00:19.3]} 19... Rd8 {[%clk 0:00:31.6]} 20. Qe2 {[%clk 0:00:17.3]} 20... Bd5 {[%clk 0:00:29.2]} 21. Nd3 {[%clk 0:00:16.5]} 21... Re8 {[%clk 0:00:26.8]} 22. Qg4 {[%clk 0:00:15.7]} 22... Bc4 {[%clk 0:00:25.5]} 23. Bxh6 {[%clk 0:00:14.9]} 23... Bf6 {[%clk 0:00:23.8]} 24. Bg5 {[%clk 0:00:13.5]} 24... Bxd3 {[%clk 0:00:21.8]} 25. Bxf6 {[%clk 0:00:12.4]} 25... Bg6 {[%clk 0:00:19.4]} 26. Bc3 {[%clk 0:00:10.6]} 26... Qc5+ {[%clk 0:00:18.6]} 27. Kh1 {[%clk 0:00:08]} 27... Re4 {[%clk 0:00:18]} 28. Rxf7 {[%clk 0:00:05.1]} 28... Rxg4 {[%clk 0:00:15.6]} 29. Rxg7+ {[%clk 0:00:03.2]} 29... Kf8 {[%clk 0:00:13]} 30. Rf1+ {[%clk 0:00:01.3]} 30... Ke8 {[%clk 0:00:11.8]} 0-1

[Event "Live Chess"]
[Site "Chess.com"]
[Date "2010.12.09"]
[Round "-"]
[White "mr_Ralf"]
[Black "hipposcottimus"]
[Result "1-0"]
[CurrentPosition "2R3k1/p5r1/7p/5Q2/4P3/3P1b2/P5PP/6K1 b - -"]
[Timezone "UTC"]
[ECO "A10"]
[ECOUrl "https://www.chess.com/openings/English-Opening-Anglo-Scandinavian-Defense-2.cxd5-Qxd5-3.Nc3"]
[UTCDate "2010.12.09"]
[UTCTime "22:03:53"]
[WhiteElo "1471"]
[BlackElo "1660"]
[TimeControl "60"]
[Termination "mr_Ralf won by checkmate"]
[StartTime "22:03:53"]
[EndDate "2010.12.09"]
[EndTime "22:05:44"]
[Link "https://www.chess.com/game/live/75709138"]

1. c4 {[%clk 0:01:00]} 1... d5 {[%clk 0:01:00]} 2. cxd5 {[%clk 0:00:58.3]} 2... Qxd5 {[%clk 0:00:59.7]} 3. Nc3 {[%clk 0:00:57.9]} 3... Qd8 {[%clk 0:00:59.3]} 4. e4 {[%clk 0:00:57.3]} 4... e5 {[%clk 0:00:59.1]} 5. d3 {[%clk 0:00:55.2]} 5... Nc6 {[%clk 0:00:58.2]} 6. f4 {[%clk 0:00:52.1]} 6... Nf6 {[%clk 0:00:57.1]} 7. fxe5 {[%clk 0:00:51.2]} 7... Nxe5 {[%clk 0:00:55.4]} 8. Bf4 {[%clk 0:00:47.1]} 8... Bd6 {[%clk 0:00:53.5]} 9. Nf3 {[%clk 0:00:46.1]} 9... Nxf3+ {[%clk 0:00:52.3]} 10. Qxf3 {[%clk 0:00:44.7]} 10... O-O {[%clk 0:00:50.6]} 11. Bxd6 {[%clk 0:00:40.9]} 11... Qxd6 {[%clk 0:00:50.3]} 12. Be2 {[%clk 0:00:40.2]} 12... Bg4 {[%clk 0:00:49]} 13. Qf2 {[%clk 0:00:37.8]} 13... Qb4 {[%clk 0:00:44.8]} 14. O-O {[%clk 0:00:35.6]} 14... Qxb2 {[%clk 0:00:42.7]} 15. Nd5 {[%clk 0:00:29.1]} 15... Bxe2 {[%clk 0:00:38.6]} 16. Nxf6+ {[%clk 0:00:26.8]} 16... gxf6 {[%clk 0:00:38.2]} 17. Rfe1 {[%clk 0:00:26.1]} 17... Bh5 {[%clk 0:00:36.1]} 18. Qxb2 {[%clk 0:00:24.9]} 18... Bg6 {[%clk 0:00:33.3]} 19. Qxb7 {[%clk 0:00:21.4]} 19... Kh8 {[%clk 0:00:31.8]} 20. Qb2 {[%clk 0:00:19.4]} 20... Rg8 {[%clk 0:00:31.5]} 21. Qxf6+ {[%clk 0:00:18.1]} 21... Rg7 {[%clk 0:00:31.2]} 22. Rec1 {[%clk 0:00:15.7]} 22... Rg8 {[%clk 0:00:31]} 23. Rxc7 {[%clk 0:00:14.8]} 23... Bh5 {[%clk 0:00:30.7]} 24. Rac1 {[%clk 0:00:13.5]} 24... h6 {[%clk 0:00:28.5]} 25. Rc8 {[%clk 0:00:12.6]} 25... Kh7 {[%clk 0:00:28.2]} 26. Rxg8 {[%clk 0:00:11.2]} 26... Rxg8 {[%clk 0:00:27.8]} 27. Qxf7+ {[%clk 0:00:10.7]} 27... Rg7 {[%clk 0:00:26.8]} 28. Qf5+ {[%clk 0:00:08.9]} 28... Bg6 {[%clk 0:00:25.6]} 29. Qf6 {[%clk 0:00:08.4]} 29... Bh5 {[%clk 0:00:24.5]} 30. Rc6 {[%clk 0:00:06.7]} 30... Bf3 {[%clk 0:00:24]} 31. Qf5+ {[%clk 0:00:05.6]} 31... Kg8 {[%clk 0:00:20.5]} 32. Rc8# {[%clk 0:00:04.7]} 1-0

[Event "Live Chess"]
[Site "Chess.com"]
[Date "2010.12.09"]
[Round "-"]
[White "hipposcottimus"]
[Black "mr_Ralf"]
[Result "1-0"]
[CurrentPosition "rn1Qkb2/ppp2Np1/3p1n1p/8/2B5/3P4/PPP2PPP/RNB2RK1 b - -"]
[Timezone "UTC"]
[ECO "C42"]
[ECOUrl "https://www.chess.com/openings/Petrovs-Defense-Urusov-Gambit"]
[UTCDate "2010.12.09"]
[UTCTime "22:02:32"]
[WhiteElo "1660"]
[BlackElo "1471"]
[TimeControl "60"]
[Termination "hipposcottimus won by checkmate"]
[StartTime "22:02:32"]
[EndDate "2010.12.09"]
[EndTime "22:03:27"]
[Link "https://www.chess.com/game/live/75708790"]

1. e4 {[%clk 0:01:00]} 1... e5 {[%clk 0:01:00]} 2. Nf3 {[%clk 0:00:59.8]} 2... Nf6 {[%clk 0:00:59.1]} 3. Bc4 {[%clk 0:00:59.6]} 3... h6 {[%clk 0:00:57.3]} 4. Nxe5 {[%clk 0:00:58.5]} 4... d6 {[%clk 0:00:56.3]} 5. Nxf7 {[%clk 0:00:56.5]} 5... Nxe4 {[%clk 0:00:55.9]} 6. Nxh8 {[%clk 0:00:55.5]} 6... Qe7 {[%clk 0:00:51.2]} 7. Qh5+ {[%clk 0:00:51.3]} 7... Kd7 {[%clk 0:00:46.5]} 8. O-O {[%clk 0:00:44.2]} 8... Kd8 {[%clk 0:00:44.8]} 9. d3 {[%clk 0:00:42.3]} 9... Nf6 {[%clk 0:00:42.3]} 10. Nf7+ {[%clk 0:00:41.8]} 10... Kd7 {[%clk 0:00:39.4]} 11. Qf5+ {[%clk 0:00:40.4]} 11... Ke8 {[%clk 0:00:37.7]} 12. Qxc8+ {[%clk 0:00:39.1]} 12... Qd8 {[%clk 0:00:34.4]} 13. Qxd8# {[%clk 0:00:37.8]} 1-0

[Event "Live Chess"]
[Site "Chess.com"]
[Date "2010.12.09"]
[Round "-"]
[White "mr_Ralf"]
[Black "hipposcottimus"]
[Result "1-0"]
[CurrentPosition "4N1k1/p5pp/6q1/4p3/3p4/P2P1r2/4KPbP/R3R3 b - -"]
[Timezone "UTC"]
[ECO "A10"]
[ECOUrl "https://www.chess.com/openings/English-Opening-Jaenisch-Gambit"]
[UTCDate "2010.12.09"]
[UTCTime "22:00:15"]
[WhiteElo "1471"]
[BlackElo "1660"]
[TimeControl "60"]
[Termination "mr_Ralf won on time"]
[StartTime "22:00:15"]
[EndDate "2010.12.09"]
[EndTime "22:02:20"]
[Link "https://www.chess.com/game/live/75708143"]

1. c4 {[%clk 0:01:00]} 1... b5 {[%clk 0:01:00]} 2. cxb5 {[%clk 0:00:57.9]} 2... c6 {[%clk 0:00:59]} 3. bxc6 {[%clk 0:00:56.1]} 3... Nxc6 {[%clk 0:00:58.4]} 4. e4 {[%clk 0:00:55.7]} 4... e5 {[%clk 0:00:57.9]} 5. Nf3 {[%clk 0:00:53.3]} 5... Nf6 {[%clk 0:00:57.7]} 6. b3 {[%clk 0:00:52.4]} 6... Bb4 {[%clk 0:00:57.1]} 7. Bb2 {[%clk 0:00:47.9]} 7... d6 {[%clk 0:00:54.7]} 8. Ba3 {[%clk 0:00:44]} 8... O-O {[%clk 0:00:52.4]} 9. Bxb4 {[%clk 0:00:43]} 9... Nxb4 {[%clk 0:00:52.1]} 10. Nc3 {[%clk 0:00:42.4]} 10... Ba6 {[%clk 0:00:44.6]} 11. d3 {[%clk 0:00:40.2]} 11... Nd7 {[%clk 0:00:39.5]} 12. a3 {[%clk 0:00:39.6]} 12... Nc6 {[%clk 0:00:36.5]} 13. b4 {[%clk 0:00:38]} 13... f5 {[%clk 0:00:35.2]} 14. b5 {[%clk 0:00:34.6]} 14... fxe4 {[%clk 0:00:34.3]} 15. bxc6 {[%clk 0:00:32.8]} 15... exf3 {[%clk 0:00:32.4]} 16. cxd7 {[%clk 0:00:29.9]} 16... fxg2 {[%clk 0:00:30.4]} 17. Bxg2 {[%clk 0:00:27.4]} 17... Qxd7 {[%clk 0:00:30.1]} 18. O-O {[%clk 0:00:26.5]} 18... Rae8 {[%clk 0:00:27.8]} 19. Re1 {[%clk 0:00:25.7]} 19... d5 {[%clk 0:00:25.9]} 20. Ne2 {[%clk 0:00:22.9]} 20... d4 {[%clk 0:00:22.3]} 21. Ng3 {[%clk 0:00:19.5]} 21... Bc8 {[%clk 0:00:18.4]} 22. Ne4 {[%clk 0:00:18.7]} 22... Qf5 {[%clk 0:00:16.8]} 23. Nd6 {[%clk 0:00:16.9]} 23... Qg6 {[%clk 0:00:13.6]} 24. Nxe8 {[%clk 0:00:14.9]} 24... Bh3 {[%clk 0:00:09.8]} 25. Qf3 {[%clk 0:00:11]} 25... Rxf3 {[%clk 0:00:06]} 26. Kf1 {[%clk 0:00:08.1]} 26... Bxg2+ {[%clk 0:00:02.1]} 27. Ke2 {[%clk 0:00:07.1]} 1-0

[Event "Live Chess"]
[Site "Chess.com"]
[Date "2010.12.09"]
[Round "-"]
[White "hipposcottimus"]
[Black "mr_Ralf"]
[Result "1-0"]
[CurrentPosition "4r2r/p1b3p1/5k1p/1q6/2p5/5Q2/PPP1RPPP/4R1K1 b - -"]
[Timezone "UTC"]
[ECO "C41"]
[ECOUrl "https://www.chess.com/openings/Philidor-Defense-3.Bc4"]
[UTCDate "2010.12.09"]
[UTCTime "21:57:59"]
[WhiteElo "1660"]
[BlackElo "1471"]
[TimeControl "60"]
[Termination "hipposcottimus won on time"]
[StartTime "21:57:59"]
[EndDate "2010.12.09"]
[EndTime "21:59:58"]
[Link "https://www.chess.com/game/live/75707527"]

1. e4 {[%clk 0:01:00]} 1... e5 {[%clk 0:01:00]} 2. Nf3 {[%clk 0:00:59.7]} 2... d6 {[%clk 0:00:59.5]} 3. Bc4 {[%clk 0:00:59.4]} 3... h6 {[%clk 0:00:57.6]} 4. d4 {[%clk 0:00:58.3]} 4... exd4 {[%clk 0:00:56.1]} 5. Qxd4 {[%clk 0:00:55.6]} 5... c5 {[%clk 0:00:55.6]} 6. Qd5 {[%clk 0:00:54.5]} 6... Be6 {[%clk 0:00:53.3]} 7. Qxb7 {[%clk 0:00:53.5]} 7... Nd7 {[%clk 0:00:48.1]} 8. Bxe6 {[%clk 0:00:43.4]} 8... fxe6 {[%clk 0:00:48.1]} 9. O-O {[%clk 0:00:40.6]} 9... Ngf6 {[%clk 0:00:47.5]} 10. Nc3 {[%clk 0:00:39.6]} 10... e5 {[%clk 0:00:47.1]} 11. Re1 {[%clk 0:00:38.1]} 11... Be7 {[%clk 0:00:46.6]} 12. Qb3 {[%clk 0:00:36]} 12... Qc8 {[%clk 0:00:37.7]} 13. Nd5 {[%clk 0:00:35.4]} 13... c4 {[%clk 0:00:36.7]} 14. Nxf6+ {[%clk 0:00:34.8]} 14... Kf7 {[%clk 0:00:34.5]} 15. Nxe5+ {[%clk 0:00:26.2]} 15... Kxf6 {[%clk 0:00:31.9]} 16. Nxd7+ {[%clk 0:00:23.1]} 16... Qxd7 {[%clk 0:00:30.4]} 17. Qf3+ {[%clk 0:00:22.7]} 17... Ke6 {[%clk 0:00:27.8]} 18. e5 {[%clk 0:00:22.1]} 18... dxe5 {[%clk 0:00:25.3]} 19. Bf4 {[%clk 0:00:21.8]} 19... Bf6 {[%clk 0:00:16.2]} 20. Rad1 {[%clk 0:00:19.5]} 20... Qb5 {[%clk 0:00:13.8]} 21. Bxe5 {[%clk 0:00:17.8]} 21... Bxe5 {[%clk 0:00:11.4]} 22. Qe3 {[%clk 0:00:17.3]} 22... Rae8 {[%clk 0:00:07.7]} 23. Re2 {[%clk 0:00:14.3]} 23... Kf6 {[%clk 0:00:05.5]} 24. Rde1 {[%clk 0:00:13.7]} 24... Bc7 {[%clk 0:00:00.5]} 25. Qf3+ {[%clk 0:00:13.3]} 1-0

[Event "Live Chess"]
[Site "Chess.com"]
[Date "2010.12.09"]
[Round "-"]
[White "mr_Ralf"]
[Black "hipposcottimus"]
[Result "0-1"]
[CurrentPosition "4rrk1/p5pp/8/8/1P3q2/P6Q/1B4P1/3RR2K w - -"]
[Timezone "UTC"]
[ECO "A10"]
[ECOUrl "https://www.chess.com/openings/English-Opening-Jaenisch-Gambit"]
[UTCDate "2010.12.09"]
[UTCTime "21:55:50"]
[WhiteElo "1471"]
[BlackElo "1660"]
[TimeControl "60"]
[Termination "hipposcottimus won on time"]
[StartTime "21:55:50"]
[EndDate "2010.12.09"]
[EndTime "21:57:35"]
[Link "https://www.chess.com/game/live/75706949"]

1. c4 {[%clk 0:01:00]} 1... b5 {[%clk 0:01:00]} 2. c5 {[%clk 0:00:58.6]} 2... d6 {[%clk 0:00:58.4]} 3. cxd6 {[%clk 0:00:57.2]} 3... cxd6 {[%clk 0:00:56.4]} 4. e4 {[%clk 0:00:56.8]} 4... Bd7 {[%clk 0:00:55]} 5. Nc3 {[%clk 0:00:54.1]} 5... e5 {[%clk 0:00:54.7]} 6. Bxb5 {[%clk 0:00:52.5]} 6... Nf6 {[%clk 0:00:54.5]} 7. Bxd7+ {[%clk 0:00:49.7]} 7... Nbxd7 {[%clk 0:00:54.2]} 8. d3 {[%clk 0:00:48.2]} 8... Be7 {[%clk 0:00:53.9]} 9. Nf3 {[%clk 0:00:47.1]} 9... O-O {[%clk 0:00:53.7]} 10. O-O {[%clk 0:00:45.4]} 10... Nh5 {[%clk 0:00:53.4]} 11. a3 {[%clk 0:00:43.5]} 11... f5 {[%clk 0:00:52.6]} 12. exf5 {[%clk 0:00:41.8]} 12... Rxf5 {[%clk 0:00:50.9]} 13. Nd5 {[%clk 0:00:40.3]} 13... Rf8 {[%clk 0:00:48.1]} 14. Nxe7+ {[%clk 0:00:38.9]} 14... Qxe7 {[%clk 0:00:47.9]} 15. Nd2 {[%clk 0:00:36.8]} 15... Nhf6 {[%clk 0:00:47.6]} 16. Nc4 {[%clk 0:00:35.9]} 16... d5 {[%clk 0:00:46.4]} 17. Ne3 {[%clk 0:00:33.3]} 17... Rad8 {[%clk 0:00:45.4]} 18. b4 {[%clk 0:00:30.8]} 18... e4 {[%clk 0:00:45.1]} 19. dxe4 {[%clk 0:00:29.2]} 19... dxe4 {[%clk 0:00:43.3]} 20. Re1 {[%clk 0:00:27]} 20... Ne5 {[%clk 0:00:43]} 21. Qc2 {[%clk 0:00:24.3]} 21... Qe6 {[%clk 0:00:41.8]} 22. Bb2 {[%clk 0:00:20.3]} 22... Neg4 {[%clk 0:00:40.2]} 23. h3 {[%clk 0:00:18.2]} 23... Nxe3 {[%clk 0:00:38.2]} 24. Rxe3 {[%clk 0:00:16.2]} 24... Nd5 {[%clk 0:00:37.9]} 25. Rxe4 {[%clk 0:00:14.5]} 25... Qf6 {[%clk 0:00:37.5]} 26. Ree1 {[%clk 0:00:12.9]} 26... Qf7 {[%clk 0:00:35.6]} 27. Rad1 {[%clk 0:00:07.7]} 27... Nf4 {[%clk 0:00:35.3]} 28. Qe4 {[%clk 0:00:06.1]} 28... Rde8 {[%clk 0:00:34.2]} 29. Qf3 {[%clk 0:00:04.7]} 29... Nxh3+ {[%clk 0:00:32.6]} 30. Qxh3 {[%clk 0:00:03.5]} 30... Qxf2+ {[%clk 0:00:30]} 31. Kh1 {[%clk 0:00:01.2]} 31... Qf4 {[%clk 0:00:29.7]} 0-1